bitfinex/quotes_ETHUSD_20250520
["timestamp","ask_amount","ask_price","bid_price","bid_amount"]
[1747754545492,4.8203552,2470.2,2470.1,7.831]
[1747754547019,4.0482552,2470.2,2470.1,7.831]
[1747754547735,4.04858299,2470.0,2469.9,0.7828]
[1747754547902,4.04858299,2470.0,2469.9,8.6138]
[1747754549625,4.04858299,2470.0,2469.9,8.6148]
[1747754549927,4.04839592,2470.2,2469.9,9.47628]
[1747754550095,4.04772955,2470.6,2469.9,9.47628]
[1747754550294,4.04838382,2470.2,2469.9,9.47628]
[1747754550631,4.04851072,2470.1,2469.9,9.47628]
[1747754551608,0.7904,2470.8,2470.0,17.330877]
[1747754551799,7.50315679,2471.2,2470.0,17.330877]
[1747754551800,4.04826208,2470.2,2470.0,0.947628]
[1747754551995,4.04820641,2470.3,2470.0,0.947628]
[1747754552202,4.04820641,2470.3,2470.1,7.832]
[1747754552398,4.04802014,2470.4,2470.1,7.832]
[1747754552599,4.04802014,2470.4,2470.2,0.8779628]
[1747754552910,4.04802014,2470.4,2470.1,7.832]
[1747754552911,4.04809132,2470.3,2470.1,7.832]
[1747754553233,4.04809132,2470.3,2470.2,17.475]
[1747754553854,4.04809132,2470.3,2470.2,25.307]
[1747754555456,4.04809132,2470.3,2470.2,25.308]
[1747754556659,4.04809132,2470.3,2470.2,17.475]
[1747754556836,4.04809132,2470.3,2470.2,25.308]
[1747754558132,4.04809132,2470.3,2470.2,17.475]
[1747754558356,0.8012,2471.2,2470.3,0.8004]
[1747754558576,4.04727245,2470.8,2470.5,0.8004]
[1747754558781,4.04745694,2470.7,2470.5,0.8004]
[1747754558975,4.04745694,2470.7,2470.6,12.511379]
[1747754559175,4.04736351,2470.8,2470.6,13.8975569]
[1747754559375,4.04736351,2470.8,2470.6,1.3861779]
[1747754559575,4.04750355,2470.7,2470.5,0.8004]
[1747754559777,4.04750355,2470.7,2470.6,2.28576]
[1747754559984,4.04759977,2470.6,2470.5,0.8004]
[1747754560168,4.04759977,2470.6,2470.5,26.1084]
[1747754560978,4.04759977,2470.6,2470.5,0.8004]
[1747754562852,4.04718404,2470.9,2470.6,2.61064]
[1747754563782,4.0473554,2470.8,2470.6,2.61064]
[1747754563983,4.04741856,2470.8,2470.7,6.568888]
[1747754564783,4.04759977,2470.6,2470.5,18.2744]
[1747754564982,4.04759977,2470.6,2470.5,25.306]
[1747754565360,4.04759977,2470.6,2470.5,17.474]
[1747754565558,4.04759977,2470.6,2470.5,25.306]
[1747754567484,12.31095656,2470.6,2470.5,25.306]
[1747754568985,12.31095656,2470.6,2470.5,17.474]
[1747754569173,12.31095656,2470.6,2470.5,25.306]
[1747754574690,11.55075656,2470.6,2470.5,25.306]
[1747754574891,4.04759977,2470.6,2470.5,25.306]
[1747754575871,4.04759977,2470.6,2470.5,26.0732]
[1747754576760,7.50315679,2471.4,2470.5,28.68052]
[1747754576960,4.04735151,2470.8,2470.6,0.55]
[1747754577164,4.04727213,2470.8,2470.7,10.599345]
[1747754577365,4.04628955,2471.4,2470.7,10.599345]
[1747754577366,4.04719382,2470.9,2470.7,10.599345]
[1747754577568,4.04727213,2470.8,2470.7,0.7688]
[1747754577787,4.04727213,2470.8,2470.7,8.099744]
[1747754578091,4.04727213,2470.8,2470.7,3.692012]
[1747754578501,4.04727213,2470.8,2470.7,0.7688]
[1747754578698,4.04727213,2470.8,2470.7,8.5988]
[1747754579104,4.04727213,2470.8,2470.7,0.7688]
[1747754579306,4.04727213,2470.8,2470.7,8.5988]
[1747754579801,4.04727213,2470.8,2470.7,0.7688]
[1747754580005,4.04727213,2470.8,2470.7,8.5988]
[1747754582709,4.04727213,2470.8,2470.7,0.7688]
[1747754582912,4.04727213,2470.8,2470.5,17.474]
[1747754582913,4.04759977,2470.6,2470.5,17.474]
[1747754583121,4.04759977,2470.6,2470.5,25.303]
[1747754584429,4.04759977,2470.6,2470.5,17.474]
[1747754584594,4.83209977,2470.6,2470.5,25.303]
[1747754586105,4.83209977,2470.6,2470.5,17.474]
[1747754586307,4.83209977,2470.6,2470.5,25.303]
[1747754587314,4.83209977,2470.6,2470.5,17.474]
[1747754587513,4.04759977,2470.6,2470.5,25.304]
[1747754588229,4.04759977,2470.6,2470.5,17.474]
[1747754588417,4.04759977,2470.6,2470.5,25.304]
[1747754588630,4.04759977,2470.6,2470.5,17.474]
[1747754589035,4.86629977,2470.6,2470.5,25.304]
[1747754589613,4.86629977,2470.6,2470.5,17.474]
[1747754589814,4.86629977,2470.6,2470.5,25.304]
[1747754590410,4.86629977,2470.6,2470.5,17.474]
[1747754590643,4.86629977,2470.6,2470.5,25.304]
[1747754592157,5.27199215,2470.6,2470.5,25.304]
[1747754592859,12.77514894,2470.6,2470.5,25.304]
[1747754594564,12.77514894,2470.6,2470.5,25.305]
[1747754594859,12.77514894,2470.6,2470.5,17.474]
[1747754595022,12.77514894,2470.6,2470.5,25.305]
[1747754595552,12.36945656,2470.6,2470.5,25.305]
[1747754597841,12.36945656,2470.6,2470.5,17.474]
[1747754598026,12.36945656,2470.6,2470.5,25.305]
[1747754600389,12.36945656,2470.6,2470.5,17.474]
[1747754602255,11.55075656,2470.6,2470.5,17.474]
[1747754602569,4.04759977,2470.6,2470.5,20.0045]
[1747754603180,4.04759977,2470.6,2470.5,17.474]
[1747754603385,4.04759977,2470.6,2470.5,18.2747]
[1747754604507,4.04759977,2470.6,2470.5,26.1057]
[1747754604699,4.04759977,2470.6,2470.5,26.1007]
[1747754605796,4.04759977,2470.6,2470.5,18.2747]
[1747754606000,4.04759977,2470.6,2470.5,26.0997]
[1747754606463,4.04759977,2470.6,2470.5,18.2747]
[1747754606659,4.04759977,2470.6,2470.5,26.0997]
[1747754606901,4.04759977,2470.6,2470.5,18.2747]
[1747754607097,4.04759977,2470.6,2470.5,26.0997]
[1747754608098,4.04759977,2470.6,2470.5,18.2747]
[1747754608262,4.04759977,2470.6,2470.5,26.0997]
[1747754611500,4.04759977,2470.6,2470.5,18.2747]
[1747754611701,4.04759977,2470.6,2470.5,26.0987]
[1747754611915,4.04759977,2470.6,2470.5,18.2747]
[1747754612210,4.04759977,2470.6,2470.5,25.298]
[1747754612508,4.24979203,2470.9,2470.5,7.824]
[1747754612797,4.87879977,2470.6,2470.5,7.824]
[1747754612963,4.04759977,2470.6,2470.5,7.824]
[1747754615317,4.04809132,2470.3,2470.0,17.476]
[1747754615472,4.04841909,2470.1,2470.0,17.476]
[1747754615801,4.04841909,2470.1,2470.0,25.3]
[1747754618995,4.04841909,2470.1,2470.0,17.476]
[1747754619199,4.04841909,2470.1,2470.0,25.301]
[1747754619611,4.04956669,2469.4,2469.3,18.2481]
[1747754619903,4.04956669,2469.4,2469.3,25.301]
[1747754623328,4.04956669,2469.4,2469.3,17.476]
[1747754623537,4.04956669,2469.4,2469.3,25.301]
[1747754624704,4.04956669,2469.4,2469.3,25.302]
[1747754625502,4.04956669,2469.4,2469.3,17.476]
[1747754625705,4.04956669,2469.4,2469.3,25.302]
[1747754627318,4.04956669,2469.4,2469.3,26.1237]
[1747754627823,4.04956669,2469.4,2469.3,28.73607]
[1747754628037,4.04956669,2469.4,2469.3,26.1237]
[1747754628420,4.04956669,2469.4,2469.3,26.1247]
[1747754629646,4.04943927,2469.5,2469.3,26.1247]
[1747754629946,4.04940271,2469.5,2469.4,0.8165]
[1747754630241,0.00540983,2469.6,2469.5,0.8165]
[1747754630410,4.05464857,2469.6,2469.5,0.8165]
[1747754633728,4.04956669,2469.4,2469.3,17.476]
[1747754634053,4.04956669,2469.4,2469.3,25.303]
[1747754635223,4.05153553,2468.2,2468.1,0.7688]
[1747754635427,4.05153553,2468.2,2468.1,42.459049]
[1747754635642,4.05153553,2468.2,2468.1,46.36141188]
[1747754637449,4.05153553,2468.2,2468.1,29.97816288]
[1747754638366,4.05153553,2468.2,2468.1,22.15216288]
[1747754638654,4.05153553,2468.2,2468.1,18.2498]
[1747754638855,4.05153553,2468.2,2468.1,26.0768]
[1747754640075,4.05153553,2468.2,2468.1,25.308]
[1747754642474,4.05153553,2468.2,2468.1,26.1136]
[1747754642777,4.05153553,2468.2,2468.1,18.2866]
[1747754643265,4.05153553,2468.2,2468.1,26.1146]
[1747754643428,4.05153553,2468.2,2468.1,28.72606]
[1747754643954,4.05143817,2468.3,2468.1,36.271316]
[1747754644141,4.05134113,2468.4,2468.1,28.72606]
[1747754644323,4.05149457,2468.3,2468.1,28.72606]
[1747754644521,4.05149457,2468.3,2468.2,11.797224]
[1747754644739,4.05149457,2468.3,2468.2,12.53211288]
[1747754644953,4.05149457,2468.3,2468.2,13.61052288]
[1747754645322,4.05153553,2468.2,2468.1,28.72606]
[1747754645523,4.05153553,2468.2,2468.1,26.1156]
[1747754646354,4.05127076,2468.4,2468.2,0.7769]
[1747754646355,4.05128747,2468.4,2468.2,0.7769]
[1747754646558,4.05137138,2468.3,2468.2,0.7769]
[1747754646758,4.05137138,2468.3,2468.2,12.496091]
[1747754647159,4.05137138,2468.3,2468.2,13.2973051]
[1747754647362,4.05137138,2468.3,2468.2,4.5575091]
[1747754648160,4.05137138,2468.3,2468.2,0.7769]
[1747754648326,4.05153553,2468.2,2468.1,17.481]
[1747754648529,4.05153553,2468.2,2468.1,25.31]
[1747754648729,4.05151616,2468.3,2468.1,29.11]
[1747754648924,4.05137138,2468.3,2468.2,16.383249]
[1747754649156,4.05039707,2468.9,2468.2,21.06091188]
[1747754649362,4.05137138,2468.3,2468.2,4.67766288]
[1747754649558,4.05137138,2468.3,2468.2,13.54224088]
[1747754649761,4.05137138,2468.3,2468.2,11.93724088]
[1747754649938,4.05137138,2468.3,2468.2,0.7753]
[1747754650138,4.05137138,2468.3,2468.2,5.964269]
[1747754650363,4.05137138,2468.3,2468.2,4.359269]
[1747754650569,4.05137138,2468.3,2468.2,11.883796]
[1747754650867,4.87673069,2469.3,2468.3,0.55]
[1747754651040,4.87673069,2469.3,2468.5,0.7811]
[1747754651041,4.05076053,2468.7,2468.5,0.7811]
[1747754651226,4.05005872,2469.1,2468.5,0.7811]
[1747754651638,4.05070327,2468.8,2468.5,0.7811]
[1747754652230,0.827,2469.3,2468.6,0.55]
[1747754652431,4.05021449,2469.1,2468.8,0.55]
[1747754652656,0.81550983,2469.6,2468.9,0.92113]
[1747754652846,4.05005872,2469.1,2469.0,17.488]
[1747754653168,4.05005872,2469.1,2469.0,18.262]
[1747754653361,0.00540983,2469.6,2469.0,33.478975]
[1747754653662,4.04980155,2469.3,2469.0,18.262]
[1747754653961,0.00540983,2469.6,2469.2,0.774]
[1747754653962,4.0494831,2469.5,2469.2,0.774]
[1747754654262,4.0494831,2469.5,2469.3,9.37575767]
[1747754654664,0.00540983,2469.6,2469.3,9.37575767]
[1747754654868,4.05466857,2469.6,2469.4,7.534185]
[1747754655084,4.04956669,2469.4,2469.3,9.37575767]
[1747754655235,4.04956669,2469.4,2469.3,18.33096167]
[1747754656078,4.05470256,2469.6,2469.4,1.3487]
[1747754656267,4.05470256,2469.6,2469.5,1.2263343]
[1747754656467,4.04940271,2469.5,2469.4,0.7987]
[1747754656769,4.04940271,2469.5,2469.4,8.6257]
[1747754657151,4.04940271,2469.5,2469.4,0.7987]
[1747754657357,4.0498947,2469.2,2469.1,0.7717]
[1747754657669,4.0498947,2469.2,2469.1,8.5987]
[1747754658339,4.04980201,2469.3,2469.1,8.5987]
[1747754658545,4.0498947,2469.2,2469.1,8.5987]
[1747754658755,4.0498947,2469.2,2469.1,0.7717]
[1747754658974,4.0498947,2469.2,2469.1,8.5987]
[1747754660159,0.77260983,2469.6,2469.1,8.5987]
[1747754660357,4.04987487,2469.3,2469.1,0.7717]
[1747754660558,4.04948305,2469.5,2469.2,24.210249]
[1747754660759,4.04957669,2469.4,2469.2,7.827]
[1747754661871,4.04949218,2469.5,2469.2,7.827]
[1747754662080,4.04949218,2469.5,2469.2,8.83240115]
[1747754662250,4.04958319,2469.4,2469.2,8.83240115]
[1747754662445,4.04953042,2469.5,2469.3,10.283197]
[1747754662642,0.00540983,2469.6,2469.5,4.04940271]
[1747754662843,4.04783639,2470.5,2469.9,0.55]
[1747754663070,0.751,2471.0,2470.0,25.31]
[1747754663259,4.04785908,2470.5,2470.0,25.31]
[1747754663458,4.04789263,2470.5,2470.0,25.31]
[1747754663658,4.04710834,2470.9,2470.0,25.31]
[1747754663885,4.0481676,2470.3,2470.0,25.31]
[1747754664260,4.04786772,2470.5,2470.0,25.31]
[1747754664574,0.751,2471.0,2470.0,25.31]
[1747754664575,4.04801466,2470.4,2470.0,25.31]
[1747754664778,4.04801466,2470.4,2470.0,27.91853]
[1747754665282,0.751,2471.0,2470.0,27.91853]
[1747754665582,4.04785401,2470.5,2470.1,7.856]
[1747754665879,0.751,2471.0,2470.1,7.856]
[1747754666061,4.04765181,2470.6,2470.2,0.7895]
[1747754666248,4.04765181,2470.6,2470.3,0.86455]
[1747754667054,4.04745851,2470.7,2470.3,0.86455]
[1747754667887,4.04763496,2470.6,2470.3,0.86455]
[1747754668553,4.04759977,2470.6,2470.3,0.86455]
[1747754670488,4.04775587,2470.6,2470.3,0.86455]
[1747754670686,4.04780793,2470.5,2470.3,0.86455]
[1747754671190,4.04767576,2470.6,2470.3,0.86455]
[1747754671374,4.04780571,2470.5,2470.3,0.86455]
[1747754671889,4.04767657,2470.6,2470.3,0.86455]
[1747754672191,4.047794,2470.5,2470.3,0.86455]
[1747754673088,4.04733995,2470.8,2470.4,0.20510353]
[1747754673253,4.04734205,2470.8,2470.4,0.20510353]
[1747754673790,4.7943822,2472.1,2470.4,0.20510353]
[1747754673791,2.03080469,2472.8,2472.3,0.22347794]
[1747754673996,4.04468024,2472.4,2472.3,17.70047794]
[1747754674199,4.79648024,2472.4,2472.3,17.477]
[1747754674384,4.04566459,2471.8,2471.6,17.476]
[1747754674559,4.04596212,2471.6,2471.5,17.476]
[1747754674756,4.04596212,2471.6,2471.5,25.33]
[1747754677690,4.04596212,2471.6,2471.5,25.51563051]
[1747754678892,0.7739,2471.9,2471.5,25.51563051]
[1747754679262,4.04579843,2471.7,2471.6,0.185623]
[1747754680167,4.04579843,2471.7,2471.6,8.038623]
[1747754682069,0.8073,2472.2,2471.6,8.038623]
[1747754682392,4.04544164,2472.0,2471.7,0.04045296]
[1747754682597,4.85235382,2472.2,2471.6,10.6692753]
[1747754682797,4.04522314,2472.1,2471.6,10.6692753]
[1747754683706,4.04522102,2472.1,2471.6,10.6692753]
[1747754684278,4.0448764,2472.3,2471.6,10.6692753]
[1747754684476,4.04538452,2472.0,2471.6,2.8162753]
[1747754684679,4.04579843,2471.7,2471.6,0.185623]
[1747754684915,4.04579843,2471.7,2471.6,8.036623]
[1747754689816,8.28871504,2472.6,2471.6,8.036623]
[1747754689817,4.87724121,2472.3,2471.6,8.036623]
[1747754690015,4.04554367,2471.9,2471.6,8.036623]
[1747754690312,4.04554367,2471.9,2471.7,2.5512623]
[1747754690514,4.04563476,2471.8,2471.7,2.5512623]
[1747754690882,4.0455658,2471.9,2471.7,7.851]
[1747754691282,4.04563476,2471.8,2471.7,7.851]
[1747754691516,4.04560279,2471.9,2471.7,7.851]
[1747754691815,4.04563476,2471.8,2471.6,0.185623]
[1747754692117,4.04579843,2471.7,2471.6,0.185623]
[1747754692287,4.04579843,2471.7,2471.6,8.036623]
[1747754692901,0.8295,2472.6,2471.7,1.3097]
[1747754693088,0.8295,2473.0,2472.0,0.7597]
[1747754693299,4.04432813,2472.6,2472.2,0.7597]
[1747754693502,4.04462113,2472.5,2472.2,0.7597]
[1747754693713,4.04465296,2472.4,2472.3,7.85]
[1747754693901,4.04383517,2472.9,2472.3,7.85]
[1747754693902,0.8295,2473.0,2472.3,25.318]
[1747754694107,4.0444015,2472.6,2472.3,27.92577]
[1747754694507,0.8295,2473.0,2472.3,27.92577]
[1747754694822,4.04383517,2472.9,2472.3,27.92577]
[1747754694993,4.04416357,2472.7,2472.3,28.33569984]
[1747754695198,0.8295,2473.0,2472.3,28.33569984]
[1747754695521,4.04442353,2472.6,2472.3,28.33569984]
[1747754695818,4.04442353,2472.6,2472.4,2.90953998]
[1747754696128,4.04437084,2472.6,2472.4,2.90953998]
[1747754696818,4.04437084,2472.6,2472.5,0.18555543]
[1747754697027,4.0442302,2472.7,2472.5,8.10455543]
[1747754697398,4.0442302,2472.7,2472.6,0.18554793]
[1747754698003,4.0442302,2472.7,2472.6,8.10454793]
[1747754699214,4.0442302,2472.7,2472.6,8.10354793]
[1747754699724,4.8102302,2472.7,2472.6,8.10354793]
[1747754705735,4.0442302,2472.7,2472.6,8.10354793]
[1747754706117,4.0442302,2472.7,2472.6,0.18554793]
[1747754706330,4.0442302,2472.7,2472.6,8.10354793]
[1747754707206,4.8190302,2472.7,2472.6,8.10354793]
[1747754707519,4.8190302,2472.7,2472.6,0.18554793]
[1747754709611,5.3690302,2472.7,2472.6,0.18554793]
[1747754710850,4.8190302,2472.7,2472.6,0.18554793]
[1747754711615,5.3690302,2472.7,2472.6,0.18554793]
[1747754712849,15.29918699,2472.7,2472.6,0.18554793]
[1747754714408,12.87218699,2472.7,2472.6,0.18554793]
[1747754720016,15.29918699,2472.7,2472.6,0.18554793]
[1747754722450,4.04579843,2471.7,2471.6,17.463]
[1747754722651,4.04579843,2471.7,2471.6,25.382]
[1747754723253,4.04579843,2471.7,2471.6,27.99937]
[1747754723461,4.04579843,2471.7,2471.6,28.80167]
[1747754724940,4.04579843,2471.7,2471.6,20.88267]
[1747754725140,4.04579843,2471.7,2471.6,28.80167]
[1747754726185,4.04579843,2471.7,2471.6,28.987293]
[1747754726519,4.04579843,2471.7,2471.6,28.80167]
[1747754727446,4.04579843,2471.7,2471.6,29.02815867]
[1747754729958,4.04579843,2471.7,2471.6,29.17631912]
[1747754734167,4.04421813,2472.7,2471.6,29.17631912]
[1747754734168,0.7872,2473.0,2471.9,0.7689]
[1747754734373,4.04431824,2472.7,2472.2,0.7689]
[1747754734568,4.04420959,2472.7,2472.4,0.7689]
[1747754734789,4.04432581,2472.6,2472.5,18.33053394]
[1747754735019,4.04432581,2472.6,2472.5,26.17653394]
[1747754735134,4.04432581,2472.6,2472.5,18.33053394]
[1747754735579,4.04432581,2472.6,2472.5,26.17653394]
[1747754735949,4.04432581,2472.6,2472.5,25.311]
[1747754736651,4.04432581,2472.6,2472.5,17.465]
[1747754736969,4.04432581,2472.6,2472.5,25.311]
[1747754741764,4.04432581,2472.6,2472.5,25.31]
[1747754745580,4.04432581,2472.6,2472.5,17.465]
[1747754745743,4.04432581,2472.6,2472.5,25.31]
[1747754749913,4.04432581,2472.6,2472.5,26.1405]
[1747754750127,4.04432581,2472.6,2472.5,28.75455]
[1747754750956,4.04432581,2472.6,2472.5,26.1405]
[1747754751479,4.04432581,2472.6,2472.5,26.55237858]
[1747754751980,4.04432581,2472.6,2472.5,26.77883867]
[1747754753600,0.8182,2473.7,2472.6,0.7659]
[1747754753911,4.04269081,2473.6,2472.8,0.7659]
[1747754754117,4.04370089,2473.0,2472.8,0.7659]
[1747754754412,4.04356316,2473.1,2473.0,0.7659]
[1747754754594,4.04356316,2473.1,2473.0,17.8087581]
[1747754754808,4.04325563,2473.3,2473.0,17.26931819]
[1747754755128,4.04334465,2473.2,2473.1,0.99236009]
[1747754755329,4.04310019,2473.4,2473.2,0.7659]
[1747754755679,4.04303679,2473.4,2473.2,0.7659]
[1747754756607,6.89172815,2474.3,2473.4,0.7897]
[1747754756809,4.04269081,2473.6,2473.5,25.302]
[1747754757710,4.04269081,2473.6,2473.5,26.0881]
[1747754758312,4.04269081,2473.6,2473.5,18.2451]
[1747754758515,4.04269081,2473.6,2473.5,27.94461]
[1747754759304,4.04262146,2473.7,2473.5,27.94461]
[1747754759509,4.04139437,2474.4,2473.7,1.3248]
[1747754759510,4.04213337,2474.0,2473.7,1.3248]
[1747754759691,4.04203718,2474.0,2473.9,0.7748]
[1747754760181,0.7589,2474.8,2473.9,0.7748]
[1747754760380,4.04155782,2474.3,2474.1,0.7748]
[1747754760615,4.04155782,2474.3,2474.2,18.0215703]
[1747754760791,4.04155782,2474.3,2474.2,8.5948]
[1747754761322,4.04141686,2474.4,2474.2,7.82]
[1747754761517,4.0415471,2474.3,2474.2,7.82]
[1747754762086,4.04203718,2474.0,2473.9,0.7748]
[1747754762282,4.04269081,2473.6,2473.5,20.10531]
[1747754762796,4.04269081,2473.6,2473.5,27.92431]
[1747754763192,4.04269081,2473.6,2473.5,20.10531]
[1747754763395,4.04269081,2473.6,2473.5,17.459]
[1747754763593,4.04269081,2473.6,2473.5,25.278]
[1747754764719,4.04269081,2473.6,2473.5,17.459]
[1747754764928,4.04269081,2473.6,2473.5,25.278]
[1747754765494,4.86209081,2473.6,2473.5,25.278]
[1747754766808,4.86209081,2473.6,2473.5,17.459]
[1747754767009,4.86209081,2473.6,2473.5,25.39244108]
[1747754767528,5.36209081,2473.6,2473.5,25.36881298]
[1747754767825,5.36209081,2473.6,2473.5,17.54981298]
[1747754768005,5.36209081,2473.6,2473.5,25.36881298]
[1747754768203,5.36209081,2473.6,2473.5,25.35047261]
[1747754768819,5.36209081,2473.6,2473.5,25.278]
[1747754769222,4.54269081,2473.6,2473.5,25.278]
[1747754769418,4.04269081,2473.6,2473.5,25.278]
[1747754769624,4.04269081,2473.6,2473.5,25.35047444]
[1747754770856,4.04260468,2473.7,2473.5,28.65462188]
[1747754771149,4.04252738,2473.7,2473.6,0.55]
[1747754771707,4.04229763,2473.9,2473.6,1.3652]
[1747754771905,4.04236737,2473.8,2473.7,0.8152]
[1747754772119,4.04236737,2473.8,2473.7,20.12352119]
[1747754772766,4.04226377,2473.9,2473.7,20.12352119]
[1747754772932,4.04226377,2473.9,2473.8,16.383249]
[1747754774671,4.04208211,2474.0,2473.8,16.383249]
[1747754774972,4.04208211,2474.0,2473.9,0.824]
[1747754775168,4.04208211,2474.0,2473.9,19.22048112]
[1747754775369,4.04187381,2474.1,2474.0,0.55]
[1747754775665,4.0417334,2474.2,2474.1,1.374]
[1747754776574,4.0417334,2474.2,2474.1,17.757249]
[1747754776876,6.05756405,2477.8,2474.1,17.757249]
[1747754776877,0.7723,2475.2,2474.2,1.374]
[1747754777064,0.7723,2475.2,2474.1,16.933249]
[1747754777065,4.04043266,2475.0,2474.5,0.824]
[1747754777265,4.04089384,2474.7,2474.6,25.267]
[1747754778066,4.04089384,2474.7,2474.6,17.8583693]
[1747754778263,4.04089384,2474.7,2474.6,25.6753693]
[1747754778472,4.04089384,2474.7,2474.6,28.32530623]
[1747754778772,4.04089384,2474.7,2474.6,45.25855523]
[1747754778989,4.04089384,2474.7,2474.6,44.10220123]
[1747754779338,4.04089384,2474.7,2474.6,37.30134623]
[1747754779539,4.04089384,2474.7,2474.6,36.87020523]
[1747754779739,4.04089384,2474.7,2474.6,35.98198323]
[1747754779952,4.04082713,2474.8,2474.6,35.98198323]
[1747754780149,4.04082713,2474.8,2474.7,18.80309532]
[1747754780468,4.04082713,2474.8,2474.7,20.55751532]
[1747754781374,4.04082713,2474.8,2474.7,18.85946632]
[1747754783079,4.04082713,2474.8,2474.7,17.57775832]
[1747754783450,4.04089384,2474.7,2474.6,17.8583693]
[1747754783671,4.04089384,2474.7,2474.6,25.6733693]
[1747754784972,4.04089384,2474.7,2474.6,17.8583693]
[1747754785173,4.04089384,2474.7,2474.6,25.265]
[1747754785883,4.04089384,2474.7,2474.6,27.8739]
[1747754786086,4.04089384,2474.7,2474.6,30.790655]
[1747754786558,4.04089384,2474.7,2474.6,22.975655]
[1747754786759,4.04089384,2474.7,2474.6,27.8739]
[1747754787351,4.04089384,2474.7,2474.6,25.265]
[1747754788585,4.04089384,2474.7,2474.6,17.45]
[1747754788882,4.04089384,2474.7,2474.6,25.263]
[1747754789987,4.04089384,2474.7,2474.6,17.45]
[1747754790185,4.04089384,2474.7,2474.6,25.263]
[1747754797493,4.04089384,2474.7,2474.6,26.57524517]
[1747754797783,4.04079471,2474.8,2474.7,0.8263]
[1747754799492,4.04079471,2474.8,2474.7,1.05194279]
[1747754800401,4.04048621,2475.0,2474.7,14.30516479]
[1747754800692,4.04048621,2475.0,2474.8,20.28561188]
[1747754800879,4.04020168,2475.2,2474.9,16.60889179]
[1747754801079,4.04028681,2475.1,2475.0,0.7679]
[1747754801293,4.03960757,2475.5,2475.1,0.55]
[1747754801590,4.03851966,2476.2,2475.7,4.03920484]
[1747754801796,4.03833026,2476.3,2475.9,0.7991]
[1747754801956,0.7666,2476.9,2476.0,16.65511118]
[1747754802167,4.03829942,2476.3,2476.0,0.77564279]
[1747754802361,0.7666,2476.9,2476.2,0.55]
[1747754802673,4.03797804,2476.5,2476.4,0.7991]
[1747754802879,2.04560469,2477.1,2476.4,0.7991]
[1747754803082,1.27900469,2477.1,2476.4,0.7991]
[1747754803269,4.03791337,2476.6,2476.4,0.7991]
[1747754803466,4.03779374,2476.6,2476.5,6.6234]
[1747754803708,4.03779374,2476.6,2476.5,8.56448956]
[1747754804279,4.03779374,2476.6,2476.5,8.01324356]
[1747754804495,4.03779374,2476.6,2476.5,7.78760077]
[1747754804673,4.03767772,2476.7,2476.5,13.883154]
[1747754804877,4.03763071,2476.7,2476.5,8.361]
[1747754805082,4.03779374,2476.6,2476.5,8.361]
[1747754805293,4.03779374,2476.6,2476.5,18.259429]
[1747754805973,4.03779374,2476.6,2476.5,6.972855]
[1747754806174,4.03779374,2476.6,2476.5,15.2194045]
[1747754806798,4.03779374,2476.6,2476.5,9.1361955]
[1747754807077,4.03681575,2477.2,2476.5,18.6694045]
[1747754807299,0.8136,2477.5,2476.6,0.7987]
[1747754807485,4.03717504,2477.0,2476.8,0.55]
[1747754807809,4.03730469,2476.9,2476.8,0.55]
[1747754807975,4.03730469,2476.9,2476.8,11.2019]
[1747754808177,0.8136,2477.5,2476.8,0.55]
[1747754808377,4.03730469,2476.9,2476.8,8.359]
[1747754808717,4.03730469,2476.9,2476.8,22.950041]
[1747754808886,4.0374677,2476.8,2476.7,18.43048955]
[1747754809072,4.0374677,2476.8,2476.7,26.23948955]
[1747754809423,0.816,2478.1,2476.8,0.55]
[1747754809570,0.816,2478.1,2477.0,0.55]
[1747754809571,4.03674324,2477.3,2477.0,0.55]
[1747754809775,4.03681575,2477.2,2477.1,9.08518]
[1747754809992,4.03681575,2477.2,2477.1,16.89318]
[1747754810207,4.03681575,2477.2,2477.1,15.374043]
[1747754810418,4.03681575,2477.2,2477.1,6.11949373]
[1747754810623,4.82091575,2477.2,2477.1,0.07145073]
[1747754810797,4.03681575,2477.2,2477.1,7.87945073]
[1747754811009,4.03681575,2477.2,2477.1,9.00918582]
[1747754812225,4.03681575,2477.2,2477.1,7.87945073]
[1747754813592,4.03681575,2477.2,2477.1,0.07145073]
[1747754813788,4.03681575,2477.2,2477.1,7.87845073]
[1747754815924,4.03681575,2477.2,2477.1,8.65265073]
[1747754816424,4.03676845,2477.3,2477.1,9.20265073]
[1747754816720,4.03676845,2477.3,2477.2,1.47026507]
[1747754817293,4.03676845,2477.3,2477.2,0.92026507]
[1747754817803,4.03676845,2477.3,2477.2,0.99171292]
[1747754820588,4.03676845,2477.3,2477.2,7.87344785]
[1747754821114,4.03676845,2477.3,2477.2,8.42344785]
[1747754821320,4.03611745,2477.7,2477.4,0.754]
[1747754821492,4.03616402,2477.6,2477.5,16.933249]
[1747754821850,4.03616402,2477.6,2477.5,28.671041]
[1747754821991,4.03616402,2477.6,2477.5,23.872275]
[1747754824415,4.03616402,2477.6,2477.5,25.779]
[1747754825098,4.03616402,2477.6,2477.5,36.046168]
[1747754825299,4.03616402,2477.6,2477.5,39.7261848]
[1747754826339,4.03616402,2477.6,2477.5,40.1388407]
[1747754828118,4.03616402,2477.6,2477.5,36.8928077]
[1747754829246,4.03616402,2477.6,2477.5,36.8918077]
[1747754830040,4.03596035,2477.8,2477.6,0.55]
[1747754830343,4.03581134,2477.9,2477.8,1.3213]
[1747754831335,4.03581134,2477.9,2477.8,0.7713]
[1747754831554,4.03581134,2477.9,2477.7,3.74418077]
[1747754831555,4.03583824,2477.8,2477.7,3.74418077]
[1747754831844,4.03583824,2477.8,2477.7,11.54418077]
[1747754832839,4.03616402,2477.6,2477.5,17.427]
[1747754833245,4.03616402,2477.6,2477.5,25.227]
[1747754833552,4.0366528,2477.3,2477.2,0.55345326]
[1747754833732,4.0366528,2477.3,2477.2,25.77645326]
[1747754834239,4.0366528,2477.3,2477.2,25.29444785]
[1747754834442,4.0366528,2477.3,2477.2,26.92724632]
[1747754834922,4.0366528,2477.3,2477.2,25.29444785]
[1747754835416,4.0366528,2477.3,2477.2,17.49444785]
[1747754835619,4.0366528,2477.3,2477.2,25.29444785]
[1747754836053,4.0366528,2477.3,2477.2,17.49444785]
[1747754836450,4.0366528,2477.3,2477.2,25.29444785]